bitfinex-derivatives/quotes_BTCF0:USTF0_20250608
["timestamp","ask_amount","ask_price","bid_price","bid_amount"]
[1749423479211,1.51726702,105750.0,105740.0,0.54608933]
[1749423479615,1.87806702,105750.0,105740.0,0.54608933]
[1749423480421,1.76112106,105750.0,105740.0,0.54608933]
[1749423480820,1.40032106,105750.0,105740.0,0.54608933]
[1749423481019,1.76112106,105750.0,105740.0,0.54608933]
[1749423481213,1.40032106,105750.0,105740.0,0.54608933]
[1749423481416,1.76112106,105750.0,105740.0,0.54608933]
[1749423482415,1.76112106,105750.0,105740.0,0.84137751]
[1749423482615,1.76112106,105750.0,105740.0,0.63471663]
[1749423483521,1.40032106,105750.0,105740.0,0.63471663]
[1749423483817,1.76112106,105750.0,105740.0,0.63471663]
[1749423484413,1.76112106,105750.0,105740.0,0.33942845]
[1749423484822,1.71692106,105750.0,105740.0,0.33942845]
[1749423485125,1.67022106,105750.0,105740.0,0.33942845]
[1749423488127,1.5532751,105750.0,105740.0,0.33942845]
[1749423488516,1.67022106,105750.0,105740.0,0.33942845]
[1749423489526,0.9785551,105750.0,105740.0,0.33942845]
[1749423489728,1.66890106,105750.0,105740.0,0.33942845]
[1749423490625,0.9785551,105750.0,105740.0,0.33942845]
[1749423490814,1.66886106,105750.0,105740.0,0.63471663]
[1749423494925,1.66886106,105750.0,105740.0,0.33942845]
[1749423497425,1.30806106,105750.0,105740.0,0.33942845]
[1749423497729,1.66886106,105750.0,105740.0,0.33942845]
[1749423498731,1.30806106,105750.0,105740.0,0.33942845]
[1749423498924,1.66886106,105750.0,105740.0,0.33942845]
[1749423502631,1.66886106,105750.0,105740.0,0.63471663]
[1749423506433,1.30806106,105750.0,105740.0,0.63471663]
[1749423506634,1.78580702,105750.0,105740.0,0.55291663]
[1749423506834,1.82680702,105750.0,105740.0,0.55271663]
[1749423507029,1.87060702,105750.0,105740.0,0.55271663]
[1749423507227,1.87060702,105750.0,105740.0,0.55291663]
[1749423509335,1.50980702,105750.0,105740.0,0.55291663]
[1749423509540,1.87060702,105750.0,105740.0,0.55291663]
[1749423513532,1.91430702,105750.0,105740.0,0.55291663]
[1749423513733,1.91430702,105750.0,105740.0,0.25762845]
[1749423517947,1.91430702,105750.0,105740.0,0.55291663]
[1749423518548,1.91430702,105750.0,105740.0,0.25762845]
[1749423520647,1.55350702,105750.0,105740.0,0.25762845]
[1749423520846,1.91430702,105750.0,105740.0,0.25762845]
[1749423524855,1.91430702,105750.0,105740.0,0.06480295]
[1749423525358,1.91430702,105750.0,105740.0,0.2294884]
[1749423525559,2.03125298,105750.0,105740.0,0.2296884]
[1749423525754,1.91430702,105750.0,105740.0,0.2296884]
[1749423527049,1.91430702,105750.0,105740.0,0.21803355]
[1749423527250,2.03125298,105750.0,105740.0,0.1410433]
[1749423527455,2.03125298,105750.0,105740.0,0.0108513]
[1749423527655,0.1890531,105740.0,105730.0,0.33872978]
[1749423527963,1.02229098,105740.0,105730.0,0.43292169]
[1749423528461,1.02229098,105740.0,105730.0,0.13806711]
[1749423528962,0.94199098,105740.0,105730.0,0.13806711]
[1749423529168,0.94199098,105740.0,105730.0,0.22186711]
[1749423529350,0.94199098,105740.0,105730.0,0.29801947]
[1749423529550,0.94199098,105740.0,105730.0,0.30401947]
[1749423540768,0.94199098,105740.0,105730.0,0.22021947]
[1749423541071,0.1890888,105720.0,105710.0,0.67739329]
[1749423541269,1.47088668,105720.0,105710.0,0.67739329]
[1749423541471,1.2014488,105720.0,105710.0,0.67739329]
[1749423541669,1.39474072,105720.0,105710.0,0.77216935]
[1749423541967,1.39474072,105720.0,105710.0,0.09477606]
[1749423542567,1.51168668,105720.0,105710.0,0.09477606]
[1749423542871,1.56179339,105720.0,105710.0,0.09477606]
[1749423543069,1.60169339,105720.0,105710.0,0.0002]
[1749423543476,0.1891067,105710.0,105700.0,0.076486]
[1749423543676,0.93209862,105710.0,105700.0,0.00021351]
[1749423543871,0.93209862,105710.0,105700.0,0.09480746]
[1749423544280,1.17595266,105710.0,105700.0,0.09500746]
[1749423544665,0.77915266,105710.0,105700.0,0.09500746]
[1749423545076,1.13995266,105710.0,105700.0,0.09500746]
[1749423545976,1.14295266,105710.0,105700.0,0.09500746]
[1749423546179,1.14295266,105710.0,105700.0,0.13460746]
[1749423546778,1.14395266,105710.0,105700.0,0.09500746]
[1749423548170,1.14395266,105710.0,105700.0,0.17051108]
[1749423550473,0.9871067,105710.0,105700.0,0.28745704]
[1749423550676,0.70185266,105710.0,105700.0,0.36795704]
[1749423550871,1.27169266,105710.0,105700.0,0.36795704]
[1749423551071,1.1547467,105710.0,105700.0,0.484903]
[1749423551275,1.27169266,105710.0,105700.0,0.36795704]
[1749423551471,1.27169266,105710.0,105700.0,0.55708164]
[1749423552275,0.70185266,105710.0,105700.0,0.55708164]
[1749423552480,1.27165266,105710.0,105700.0,0.55708164]
[1749423553179,1.27165266,105710.0,105700.0,0.36795704]
[1749423556784,1.27165266,105710.0,105700.0,0.55708164]
[1749423557082,1.27149266,105710.0,105700.0,0.55708164]
[1749423558073,1.27145266,105710.0,105700.0,0.55708164]
[1749423560382,1.31315266,105710.0,105700.0,0.44013568]
[1749423561084,1.31303266,105710.0,105700.0,0.44013568]
[1749423562687,1.31503266,105710.0,105700.0,0.44013568]
[1749423562886,1.27333266,105710.0,105700.0,0.44013568]
[1749423563586,1.27033266,105710.0,105700.0,0.44013568]
[1749423563789,1.27233266,105710.0,105700.0,0.44013568]
[1749423564589,1.27033266,105710.0,105700.0,0.44013568]
[1749423564781,1.27433266,105710.0,105700.0,0.48023568]
[1749423565285,1.27433266,105710.0,105700.0,0.29111108]
[1749423567791,1.31523266,105710.0,105700.0,0.29111108]
[1749423568278,1.35733266,105710.0,105700.0,0.29111108]
[1749423573795,1.35733266,105710.0,105700.0,0.58554461]
[1749423575503,1.35733266,105710.0,105700.0,0.54454461]
[1749423575795,0.1591067,105710.0,105700.0,1.31216112]
[1749423575989,0.1129416,105720.0,105700.0,1.64098248]
[1749423576189,0.1128,105730.0,105720.0,0.2836264]
[1749423576395,0.1128,105730.0,105720.0,1.08273348]
[1749423576596,0.1128,105730.0,105720.0,1.31037152]
[1749423576794,0.3308567,105740.0,105730.0,0.189071]
[1749423577000,0.8988015,105740.0,105730.0,0.70701696]
[1749423577193,0.8988015,105740.0,105730.0,0.70704576]
[1749423577394,0.8988015,105740.0,105730.0,1.09632402]
[1749423577899,0.8998015,105740.0,105730.0,1.09632402]
[1749423578100,0.8998015,105740.0,105730.0,1.09732402]
[1749423578299,0.8997215,105740.0,105730.0,1.09732402]
[1749423578689,0.8997215,105740.0,105730.0,1.10696737]
[1749423579503,0.8997215,105740.0,105730.0,1.14806737]
[1749423580297,0.8996015,105740.0,105730.0,1.14806737]
[1749423582599,0.8523352,105740.0,105730.0,0.78726737]
[1749423582806,0.8523352,105740.0,105730.0,1.50886737]
[1749423583506,0.8050694,105740.0,105730.0,1.50886737]
[1749423583906,0.7578052,105740.0,105730.0,1.50886737]
[1749423584100,0.1896852,105740.0,105730.0,1.50886737]
[1749423584300,0.7576052,105740.0,105730.0,1.50886737]
[1749423584809,0.001,105740.0,105730.0,1.50886737]
[1749423585202,0.56888,105740.0,105730.0,1.50886737]
[1749423586509,0.001,105740.0,105730.0,1.30875011]
[1749423586705,0.5688,105740.0,105730.0,1.30875011]
[1749423587208,0.5688,105740.0,105730.0,1.60344337]
[1749423589812,0.757853,105740.0,105730.0,1.60344337]
[1749423590213,0.5688,105740.0,105730.0,1.30875011]
[1749423590701,0.7578531,105740.0,105730.0,1.30875011]
[1749423591813,0.5688,105740.0,105730.0,1.30875011]
[1749423592907,0.56852,105740.0,105730.0,1.30875011]
[1749423593307,0.7575731,105740.0,105730.0,1.30875011]
[1749423594718,0.7575731,105740.0,105730.0,1.21417411]
[1749423595611,0.8396731,105740.0,105730.0,1.13287411]
[1749423596018,0.8396731,105740.0,105730.0,1.13307411]
[1749423599716,0.8396731,105740.0,105730.0,1.12343076]
[1749423600021,0.8396731,105740.0,105730.0,1.12323076]
[1749423600225,0.8396731,105740.0,105730.0,0.817385]
[1749423600421,0.8396731,105740.0,105730.0,0.817185]
[1749423600621,0.8396731,105740.0,105730.0,1.006456]
[1749423600821,0.8396731,105740.0,105730.0,1.12343076]
[1749423601619,0.8396731,105740.0,105730.0,1.006456]
[1749423602520,0.8396731,105740.0,105730.0,1.12343076]
[1749423603224,0.8396731,105740.0,105730.0,1.41812402]
[1749423604826,0.82431623,105740.0,105730.0,1.41812402]
[1749423605822,0.82431623,105740.0,105730.0,1.80047767]
[1749423606019,0.82431623,105740.0,105730.0,1.68350291]
[1749423606223,0.82431623,105740.0,105730.0,1.38880965]
[1749423606431,1.30209099,105740.0,105730.0,0.77293896]
[1749423606730,1.30209099,105740.0,105730.0,0.39078531]
[1749423606927,1.30209099,105740.0,105730.0,0.39058531]
[1749423607229,1.30209099,105740.0,105730.0,0.033485]
[1749423607629,0.189071,105730.0,105720.0,0.36121031]
[1749423607828,0.34564576,105730.0,105720.0,0.0374548]
[1749423608134,0.1890889,105720.0,105710.0,0.84490561]
[1749423608429,0.7950889,105720.0,105710.0,0.84490561]
[1749423608630,0.7950889,105720.0,105710.0,0.48410561]
[1749423608819,0.7950889,105720.0,105710.0,0.57869061]
[1749423609328,0.7930889,105720.0,105710.0,0.6444903]
[1749423609531,0.7930889,105720.0,105710.0,0.76146506]
[1749423609924,0.7910889,105720.0,105710.0,0.76546506]
[1749423610125,0.8316889,105720.0,105710.0,0.76546506]
[1749423610328,0.8316889,105720.0,105710.0,0.79384506]
[1749423610632,0.8316889,105720.0,105710.0,0.79784506]
[1749423610835,0.8716889,105720.0,105710.0,0.79784506]
[1749423614827,0.7595289,105720.0,105710.0,0.79784506]
[1749423615019,0.7909289,105720.0,105710.0,0.79784506]
[1749423615224,0.7909289,105720.0,105710.0,0.91894506]
[1749423615433,0.7909289,105720.0,105710.0,1.21394537]
[1749423617334,0.2246889,105720.0,105710.0,1.21394537]
[1749423617532,0.45404,105720.0,105710.0,1.03591982]
[1749423617728,0.7552889,105720.0,105710.0,1.17774152]
[1749423617927,0.7552889,105720.0,105710.0,1.06076676]
[1749423618335,0.7552889,105720.0,105710.0,1.35576707]
[1749423619530,0.7552889,105720.0,105710.0,1.06076676]
[1749423619736,0.7552889,105720.0,105710.0,1.17774152]
[1749423619937,0.73993025,105720.0,105710.0,1.17774152]
[1749423620136,0.73993025,105720.0,105710.0,1.06076676]
[1749423620436,0.73993025,105720.0,105710.0,1.44312041]
[1749423621931,0.3308949,105730.0,105720.0,0.1890889]
[1749423622229,0.8023928,105730.0,105720.0,1.15817311]
[1749423622628,0.8023928,105730.0,105720.0,1.25276706]
[1749423622833,0.2363528,105730.0,105720.0,1.25276706]
[1749423623031,0.8023528,105730.0,105720.0,1.25376706]
[1749423623328,0.8023528,105730.0,105720.0,1.25576706]
[1749423623531,0.8023528,105730.0,105720.0,0.96153237]
[1749423624035,0.8023528,105730.0,105720.0,0.84455761]
[1749423627035,0.8023528,105730.0,105720.0,0.98990237]
[1749423627741,0.8023528,105730.0,105720.0,1.37225602]
[1749423629436,0.6901928,105730.0,105720.0,1.37225602]
[1749423629634,0.3248998,105740.0,105730.0,0.189071]
[1749423629835,0.8903246,105740.0,105730.0,1.0810012]
[1749423630237,0.3245246,105740.0,105730.0,1.17557726]
[1749423630436,0.8897646,105740.0,105730.0,1.17557726]
[1749423631736,0.8897646,105740.0,105730.0,1.0586025]
[1749423631941,0.8897646,105740.0,105730.0,0.7881315]
[1749423632140,0.9292646,105740.0,105730.0,0.9389025]
[1749423632331,0.9292646,105740.0,105730.0,0.9391025]
[1749423632935,0.9292646,105740.0,105730.0,0.7500315]
[1749423633143,0.9292646,105740.0,105730.0,0.7498315]
[1749423633442,0.9292646,105740.0,105730.0,0.9389025]
[1749423633943,0.9292646,105740.0,105730.0,0.9391025]
[1749423635039,1.29623936,105740.0,105730.0,0.1717747]
[1749423635239,0.189071,105730.0,105720.0,0.38629525]
[1749423635445,0.189071,105730.0,105710.0,0.46928863]
[1749423635446,0.1890889,105720.0,105710.0,0.46928863]
[1749423635636,1.23198366,105720.0,105710.0,0.46928863]
[1749423635837,1.23198366,105720.0,105710.0,0.09457606]
[1749423636536,1.22998366,105720.0,105710.0,0.09457606]
[1749423637738,1.22998366,105720.0,105710.0,0.09757606]
[1749423638337,1.36127566,105720.0,105710.0,0.09957606]
[1749423638538,1.39807566,105720.0,105710.0,0.09957606]
[1749423638941,1.76505042,105720.0,105710.0,6e-08]
[1749423639442,0.1891062,105710.0,105700.0,0.00021351]
[1749423639638,1.17548096,105710.0,105700.0,0.00021351]
[1749423639849,1.27008096,105710.0,105700.0,0.00021351]
[1749423640645,1.17548096,105710.0,105700.0,0.00021351]
[1749423641548,1.17948096,105710.0,105700.0,0.00121351]
[1749423641953,1.18248096,105710.0,105700.0,0.00121351]
[1749423642250,1.19048096,105710.0,105700.0,0.00221351]
[1749423642446,1.55128096,105710.0,105700.0,0.00221351]
[1749423643450,1.56079123,105710.0,105700.0,0.00221351]
[1749423646154,1.56079123,105710.0,105700.0,0.01643624]
[1749423646354,1.56079123,105710.0,105700.0,0.00221351]
[1749423646557,1.56079123,105710.0,105700.0,0.01643624]
[1749423646955,1.56079123,105710.0,105700.0,0.01643625]
[1749423647147,1.56079123,105710.0,105700.0,0.01643624]
[1749423648055,1.56079123,105710.0,105700.0,0.00221351]
[1749423648251,1.44381647,105710.0,105700.0,0.00221351]
[1749423648458,1.56079123,105710.0,105700.0,0.01645719]
[1749423648656,1.56079123,105710.0,105700.0,0.00221351]
[1749423648956,1.56079123,105710.0,105700.0,0.01645718]
[1749423649351,1.56079123,105710.0,105700.0,0.01645358]
[1749423649956,1.56079123,105710.0,105700.0,0.01645255]
[1749423650351,1.56079123,105710.0,105700.0,0.00221351]
[1749423650759,1.56079123,105710.0,105700.0,0.01645254]
[1749423651558,1.56079123,105710.0,105700.0,0.00221351]
[1749423651758,1.56079123,105710.0,105700.0,0.01636706]
[1749423652754,1.56079123,105710.0,105700.0,0.0163751]
[1749423653153,0.1891611,105680.0,105670.0,0.11725]
[1749423653352,1.22283594,105680.0,105670.0,0.0794]
[1749423653557,1.26163594,105680.0,105670.0,0.21427923]
[1749423653848,1.26163594,105680.0,105670.0,0.21432862]
[1749423654059,1.26174065,105680.0,105670.0,0.25322862]
[1749423654360,0.74512589,105680.0,105670.0,0.25322862]
[1749423654554,0.74512589,105680.0,105670.0,0.44240762]
[1749423654757,0.74812589,105680.0,105670.0,0.24075676]
[1749423655152,0.75112589,105680.0,105670.0,0.24175676]
[1749423655762,0.75112589,105680.0,105670.0,0.25524536]
[1749423656272,0.75112589,105680.0,105670.0,0.32976855]
[1749423656473,0.75112589,105680.0,105670.0,0.69056797]
[1749423656868,0.75112589,105680.0,105670.0,0.67707251]
[1749423657064,0.75112589,105680.0,105670.0,0.69056297]
[1749423657382,0.75112589,105680.0,105670.0,0.69055884]
[1749423657570,0.75112589,105680.0,105670.0,0.69055982]
[1749423658573,0.18604589,105680.0,105670.0,0.86625131]
[1749423658783,0.75112589,105680.0,105670.0,0.98322607]
[1749423659074,0.75112589,105680.0,105670.0,0.87981067]
[1749423659276,0.75112589,105680.0,105670.0,0.69063067]
[1749423659575,0.75112589,105680.0,105670.0,0.87980947]
[1749423660077,0.75112589,105680.0,105670.0,0.8798113]
[1749423660373,0.75112589,105680.0,105670.0,0.86625131]
[1749423660676,0.75080589,105680.0,105670.0,0.87981113]
[1749423661067,0.75080589,105680.0,105670.0,0.87981112]
[1749423661973,0.18604589,105680.0,105670.0,0.99678588]
[1749423662271,0.75080589,105680.0,105670.0,0.99680351]
[1749423662672,0.75080589,105680.0,105670.0,0.99680355]
[1749423663279,0.74158587,105680.0,105670.0,0.99680355]
[1749423663779,0.74158587,105680.0,105670.0,0.99680472]
[1749423663979,0.74154587,105680.0,105670.0,0.98322607]
[1749423664168,0.17682587,105680.0,105670.0,0.99673565]
[1749423664371,0.74154587,105680.0,105670.0,0.99673564]
[1749423664572,0.74154587,105680.0,105670.0,0.99673565]
[1749423664782,0.74154587,105680.0,105670.0,0.99671293]
[1749423665078,0.74154587,105680.0,105670.0,0.99671332]
[1749423665377,0.74154587,105680.0,105670.0,0.99666627]
[1749423665673,0.74154587,105680.0,105670.0,0.8797291]
[1749423665882,0.74150587,105680.0,105670.0,0.67707251]
[1749423666069,0.85848063,105680.0,105670.0,0.67707251]
[1749423666270,0.85848063,105680.0,105670.0,0.69056671]
[1749423666474,0.85848063,105680.0,105670.0,0.31607251]
[1749423666678,0.85848063,105680.0,105670.0,0.32982965]
[1749423667070,0.84311339,105680.0,105670.0,0.32984956]
[1749423667879,0.84311339,105680.0,105670.0,0.32962578]
[1749423668080,0.84311339,105680.0,105670.0,0.32982578]
[1749423668279,0.84311339,105680.0,105670.0,0.32973221]
[1749423668574,0.84311339,105680.0,105670.0,0.32972917]
[1749423668771,0.88151339,105680.0,105670.0,0.32972917]
[1749423668972,0.88151339,105680.0,105670.0,0.32952917]
[1749423669171,0.88151339,105680.0,105670.0,0.32979036]
[1749423669371,0.88151339,105680.0,105670.0,0.32979034]
[1749423669678,0.88151339,105680.0,105670.0,0.32979033]
[1749423669874,0.88151339,105680.0,105670.0,0.31607251]
[1749423670078,0.88151339,105680.0,105670.0,0.31627251]
[1749423670672,0.88151339,105680.0,105670.0,0.33062745]
[1749423671167,0.84311339,105680.0,105670.0,0.51980545]
[1749423671367,0.72609863,105680.0,105670.0,0.50545051]
[1749423672176,0.72609863,105680.0,105670.0,0.51981165]
[1749423672377,0.72609863,105680.0,105670.0,0.88061165]
[1749423672678,0.72609863,105680.0,105670.0,0.69143442]
[1749423673076,0.72609863,105680.0,105670.0,0.69144424]
[1749423673678,0.72609863,105680.0,105670.0,0.67707251]
[1749423673982,0.72609863,105680.0,105670.0,0.69144435]
[1749423674286,0.72609863,105680.0,105670.0,0.6914459]
[1749423675576,0.16145863,105680.0,105670.0,0.99759786]
[1749423675781,0.72605863,105680.0,105670.0,0.98322447]
[1749423676075,0.72605863,105680.0,105670.0,0.99752208]
[1749423676788,0.72605863,105680.0,105670.0,0.98322447]
[1749423677488,0.25753281,105680.0,105670.0,0.98322447]
[1749423677691,0.65015281,105680.0,105670.0,0.98322447]
[1749423678793,0.65015281,105680.0,105670.0,0.86624971]
[1749423678985,0.65015281,105680.0,105670.0,0.98322447]
[1749423679388,0.65015281,105680.0,105670.0,1.27835911]
[1749423680186,0.08559281,105680.0,105670.0,1.36539972]
[1749423680387,0.65011281,105680.0,105670.0,1.36539972]
[1749423684782,0.57062471,105680.0,105670.0,1.36539972]
[1749423684987,0.57054471,105680.0,105670.0,1.36539972]
[1749423685585,0.00610471,105680.0,105670.0,1.36539972]
[1749423685789,0.7124759,105710.0,105700.0,0.1891235]
[1749423686084,1.2757503,105710.0,105700.0,0.69355212]
[1749423686277,1.2757503,105710.0,105700.0,0.81105212]
[1749423686475,0.5391144,105710.0,105700.0,0.90565502]
[1749423686679,1.1811801,105710.0,105700.0,0.90565502]
[1749423686879,1.1891801,105710.0,105700.0,0.90665502]
[1749423687088,1.1971801,105710.0,105700.0,0.90765502]
[1749423687488,1.1971801,105710.0,105700.0,1.28983027]
[1749423687681,0.4436744,105710.0,105700.0,1.29907102]
[1749423687881,0.5645016,105720.0,105710.0,0.1891056]
[1749423688089,0.5645016,105720.0,105710.0,0.74488036]
[1749423688287,0.1115816,105720.0,105710.0,0.77153422]
[1749423688485,0.1115816,105720.0,105710.0,0.86612817]
[1749423688692,0.1115816,105720.0,105710.0,1.16023193]
[1749423689392,0.3006694,105720.0,105710.0,1.16023193]
[1749423689592,0.3016694,105720.0,105710.0,1.16023193]
[1749423690093,0.1135816,105720.0,105710.0,1.16023193]
[1749423690783,0.3026693,105720.0,105710.0,1.16023193]
[1749423695295,0.3026693,105720.0,105710.0,1.04325717]
[1749423695492,0.2299293,105720.0,105710.0,1.16043193]
[1749423695796,0.1133016,105720.0,105710.0,1.16043193]
[1749423700593,0.0021416,105720.0,105710.0,1.61303193]
[1749423700895,0.0021416,105720.0,105710.0,1.61312645]
[1749423702495,0.0021416,105720.0,105710.0,1.16052645]
[1749423702697,0.3947657,105730.0,105720.0,0.1890878]
[1749423702698,0.4401768,105730.0,105720.0,0.1890878]
[1749423702896,0.4401768,105730.0,105720.0,0.78666256]
[1749423703396,0.4401768,105730.0,105720.0,0.90791037]
[1749423703592,0.3456394,105730.0,105720.0,0.90791037]
[1749423703789,0.2983719,105730.0,105720.0,0.90791037]
[1749423704289,0.0001416,105740.0,105730.0,0.1890699]
[1749423704489,0.1113016,105740.0,105730.0,0.74554466]
[1749423704793,0.1113016,105740.0,105730.0,0.77219852]
[1749423704997,0.1113016,105740.0,105730.0,0.86678352]
[1749423705498,0.1123016,105740.0,105730.0,0.86678352]
[1749423706891,0.3013536,105740.0,105730.0,0.86678352]
[1749423707800,0.1113016,105740.0,105730.0,0.86878352]
[1749423708000,0.1113016,105740.0,105730.0,0.87078352]
[1749423708001,0.3003535,105740.0,105730.0,0.87078352]
[1749423708302,0.3003535,105740.0,105730.0,0.94826702]
[1749423709803,0.3379535,105740.0,105730.0,0.94826702]
[1749423710005,0.3379535,105740.0,105730.0,0.79149226]
[1749423710506,0.4200535,105740.0,105730.0,0.79149226]
[1749423710803,0.4200535,105740.0,105730.0,0.90846702]
[1749423711099,0.3793535,105740.0,105730.0,0.90866702]
[1749423711300,0.3379535,105740.0,105730.0,0.90866702]
[1749423712004,0.3379535,105740.0,105730.0,0.94886702]
[1749423714699,0.3379535,105740.0,105730.0,0.90866702]
[1749423714900,0.3379535,105740.0,105730.0,0.86956702]
[1749423715100,0.4175535,105740.0,105730.0,0.75279226]
[1749423715400,0.4175535,105740.0,105730.0,0.75259226]
[1749423715712,0.53452826,105740.0,105730.0,0.75279226]
[1749423715899,0.53452826,105740.0,105730.0,0.75259226]
[1749423716101,0.53452826,105740.0,105730.0,0.56372236]
[1749423717609,0.53452826,105740.0,105730.0,0.20292236]
[1749423718010,0.53452826,105740.0,105730.0,0.20272236]
[1749423718210,0.53452826,105740.0,105730.0,0.20292236]
[1749423719201,0.4175535,105740.0,105730.0,0.20292236]
[1749423719402,0.53452826,105740.0,105730.0,0.20292236]
[1749423719913,0.4175535,105740.0,105730.0,0.20292236]
[1749423720104,0.53452826,105740.0,105730.0,0.20292236]
[1749423720504,0.53452826,105740.0,105730.0,0.23130236]
[1749423725210,0.98676826,105740.0,105730.0,0.23130236]
[1749423728518,0.98676826,105740.0,105730.0,0.42037226]
[1749423728519,0.53452826,105740.0,105730.0,0.42037226]
[1749423728821,0.53452826,105740.0,105730.0,0.89814702]
[1749423728822,0.7899135,105740.0,105730.0,0.89814702]
[1749423729020,0.7899135,105740.0,105730.0,1.01284702]
[1749423729413,0.7899135,105740.0,105730.0,0.89587226]
[1749423735113,0.7899135,105740.0,105730.0,0.70680236]
[1749423735418,0.90688826,105740.0,105730.0,0.59190236]
[1749423735613,0.94448826,105740.0,105730.0,0.59210236]
[1749423735917,0.94448826,105740.0,105730.0,0.59190236]
[1749423736115,0.94448826,105740.0,105730.0,0.59210236]
[1749423739022,0.94448826,105740.0,105730.0,0.23130236]
[1749423740521,0.94448826,105740.0,105730.0,0.26990236]
[1749423741222,0.90688826,105740.0,105730.0,0.26990236]
[1749423741723,0.7899135,105740.0,105730.0,0.26990236]
[1749423741924,0.7521535,105740.0,105730.0,0.49557226]
[1749423742126,0.7521535,105740.0,105730.0,0.85637226]
[1749423742325,0.1891935,105740.0,105730.0,0.85637226]
[1749423742619,0.7521535,105740.0,105730.0,0.85637226]
[1749423743124,0.7521535,105740.0,105730.0,1.15047602]
[1749423747328,0.7521535,105740.0,105730.0,0.96140612]
[1749423748817,0.7520735,105740.0,105730.0,1.15047592]
[1749423749021,0.3001135,105740.0,105730.0,1.26745068]
[1749423749220,0.1110616,105740.0,105730.0,1.62825068]
[1749423749421,0.7355249,105750.0,105740.0,0.189052]
[1749423749616,0.8464449,105750.0,105740.0,0.70692676]
[1749423750023,0.8464449,105750.0,105740.0,0.82815668]
[1749423750226,0.8464449,105750.0,105740.0,1.21033193]
[1749423750419,0.8464449,105750.0,105740.0,0.90430517]
[1749423750626,0.96341966,105750.0,105740.0,0.90302517]
[1749423750830,1.03921966,105750.0,105740.0,0.90302517]
[1749423751331,1.03921966,105750.0,105740.0,0.52104992]
[1749423751532,1.03921966,105750.0,105740.0,0.52204992]
[1749423752828,1.03921966,105750.0,105740.0,0.55042992]
[1749423753738,1.03921966,105750.0,105740.0,0.58712992]
[1749423753933,1.03921966,105750.0,105740.0,0.62682992]
[1749423754825,1.03921966,105750.0,105740.0,0.92163733]
[1749423757028,1.00121966,105750.0,105740.0,0.92163733]
[1749423760332,1.00121966,105750.0,105740.0,0.56083733]
[1749423760531,1.36201966,105750.0,105740.0,0.56083733]
[1749423761035,1.40111966,105750.0,105740.0,0.26602992]
[1749423761435,1.40111966,105750.0,105740.0,0.26582992]
[1749423761736,1.40111966,105750.0,105740.0,0.26602992]
[1749423762938,1.40111966,105750.0,105740.0,0.18942992]
[1749423763137,1.40111966,105750.0,105740.0,0.18962992]
[1749423766248,1.82983966,105750.0,105740.0,0.18962992]
[1749423766949,1.94681442,105750.0,105740.0,0.18962992]
[1749423767343,1.94681442,105750.0,105740.0,0.18942992]
[1749423767751,1.94681442,105750.0,105740.0,0.18962992]
[1749423769340,0.189052,105740.0,105730.0,0.37229091]
[1749423769542,0.78542676,105740.0,105730.0,0.0774835]
[1749423769743,0.1890698,105730.0,105720.0,0.29494901]
[1749423769950,0.86836456,105730.0,105720.0,0.33464901]
[1749423770147,0.86836456,105730.0,105720.0,0.37504901]
[1749423770348,0.86836456,105730.0,105720.0,0.17480871]
[1749423770543,1.22716456,105730.0,105720.0,0.17480871]
[1749423771050,1.30106456,105730.0,105720.0,0.17480871]
[1749423771442,1.30106456,105730.0,105720.0,0.17880871]
[1749423771641,1.29906456,105730.0,105720.0,0.17880871]
[1749423772038,1.30855674,105730.0,105720.0,0.09890871]
[1749423772242,1.5201155,105730.0,105720.0,1e-08]
[1749423773546,1.5201155,105730.0,105710.0,0.00023612]
[1749423773547,0.42303722,105720.0,105710.0,0.00023612]
[1749423773847,0.1891056,105710.0,105700.0,0.07396092]
[1749423774149,0.86836036,105710.0,105700.0,0.07396092]
[1749423774345,0.90566036,105710.0,105700.0,0.07396092]
[1749423774552,0.94516036,105710.0,105700.0,0.16874592]
[1749423774738,1.30604872,105710.0,105700.0,0.131485]
[1749423774939,1.30604872,105710.0,105700.0,0.131285]
[1749423775145,1.73480872,105710.0,105700.0,0.131485]
[1749423775345,1.73480872,105710.0,105700.0,0.094785]
[1749423776257,1.73880872,105710.0,105700.0,0.095785]
[1749423776646,1.74280872,105710.0,105700.0,0.096785]
[1749423776846,1.74280872,105710.0,105700.0,0.096585]
[1749423777049,1.74280872,105710.0,105700.0,0.096785]
[1749423781153,1.74280872,105710.0,105700.0,0.0511036]
[1749423781363,1.74280872,105710.0,105700.0,0.0509036]
[1749423781549,1.74280872,105710.0,105700.0,0.0511036]
[1749423782654,1.02405396,105710.0,105700.0,0.0511036]
[1749423782854,1.10372872,105710.0,105700.0,0.1267036]
[1749423783053,1.66592872,105710.0,105700.0,0.1668036]
[1749423785746,1.66592872,105710.0,105700.0,0.0511036]
[1749423785958,1.74582872,105710.0,105700.0,0.0509036]
[1749423786162,1.74582872,105710.0,105700.0,0.0511036]
[1749423787652,1.62885396,105710.0,105700.0,0.0511036]
[1749423787852,1.74582872,105710.0,105700.0,0.0511036]
[1749423788658,1.62885396,105710.0,105700.0,0.0511036]
[1749423788868,1.74582872,105710.0,105700.0,0.0927036]
[1749423789054,1.70592872,105710.0,105700.0,0.0927036]
[1749423789254,1.70592872,105710.0,105700.0,0.1307036]
[1749423789860,1.74372872,105710.0,105700.0,0.1307036]
[1749423790360,1.74372872,105710.0,105700.0,0.0927036]
[1749423790559,1.74372872,105710.0,105700.0,0.0511036]
[1749423794575,1.62675396,105710.0,105700.0,0.0511036]
[1749423794758,1.74372872,105710.0,105700.0,0.1311036]
[1749423795069,1.58895396,105710.0,105700.0,0.1311036]
[1749423795373,1.70592872,105710.0,105700.0,0.1311036]
[1749423796270,1.70592872,105710.0,105700.0,0.0511036]
[1749423796458,1.74392872,105710.0,105700.0,0.0511036]
[1749423802972,1.66592872,105710.0,105700.0,0.0511036]
[1749423803174,1.66540872,105710.0,105700.0,0.1305036]
[1749423803375,1.66540872,105710.0,105700.0,0.1700036]
[1749423803970,1.66540872,105710.0,105700.0,0.1698036]
[1749423804279,1.66540872,105710.0,105700.0,0.1700036]
[1749423804868,1.66540872,105710.0,105700.0,0.1305036]
[1749423805477,1.66540872,105710.0,105700.0,0.1303036]
[1749423805674,1.66540872,105710.0,105700.0,0.1305036]
[1749423806676,1.70510872,105710.0,105700.0,0.1305036]
[1749423807072,1.74440872,105710.0,105700.0,0.0511036]
[1749423811672,1.74440872,105710.0,105700.0,0.0917036]
[1749423811878,1.70510872,105710.0,105700.0,0.1299036]
[1749423812076,0.73643396,105710.0,105700.0,0.1299036]
[1749423812271,1.18747396,105710.0,105700.0,0.1299036]
[1749423812582,1.18747396,105710.0,105700.0,0.43600186]
[1749423813076,1.17211126,105710.0,105700.0,0.1299036]
[1749423813281,1.17211126,105710.0,105700.0,0.3190271]
[1749423813674,1.17211126,105710.0,105700.0,0.61420244]
[1749423814367,1.17211126,105710.0,105700.0,0.42507894]
[1749423815084,1.28908602,105710.0,105700.0,0.42507894]
[1749423815477,0.72756602,105710.0,105700.0,0.42507894]
[1749423815783,1.28872602,105710.0,105700.0,0.42507894]
[1749423816379,1.28872602,105710.0,105700.0,0.78587894]